bitfinex/quotes_SOLUSD_20220210
["timestamp","ask_amount","ask_price","bid_price","bid_amount"]
[1644517248711,14.76862443,111.22,111.14,59.19349873]
[1644517248912,1.27442443,111.21,111.14,59.19349873]
[1644517249515,19.26562443,111.22,111.14,59.19349873]
[1644517250317,14.76862443,111.22,111.14,59.19349873]
[1644517250720,20.76862443,111.22,111.14,59.19349873]
[1644517251419,25.26562443,111.22,111.14,59.19349873]
[1644517252216,7.27442443,111.22,111.14,59.44349873]
[1644517252418,6.0,111.22,111.14,59.44349873]
[1644517252718,0.024,111.23,111.14,77.56570441]
[1644517252917,26.14082443,111.24,111.14,71.56570441]
[1644517253135,26.14082443,111.24,111.14,77.81570441]
[1644517253334,26.16482443,111.24,111.14,71.81570441]
[1644517254238,32.16482443,111.24,111.14,71.81570441]
[1644517254936,32.16482443,111.24,111.15,89.89]
[1644517255135,32.16482443,111.24,111.17,13.4892]
[1644517255136,7.29842443,111.24,111.17,13.4892]
[1644517255336,7.27442443,111.24,111.18,10.79]
[1644517255535,7.27442443,111.24,111.19,38.50087309]
[1644517255536,6.0,111.24,111.19,38.50087309]
[1644517255737,7.27442443,111.26,111.19,49.29087309]
[1644517255938,1.27442443,111.26,111.19,49.29087309]
[1644517256136,24.25592443,111.27,111.19,62.77757309]
[1644517256336,24.25592443,111.27,111.19,63.02757309]
[1644517256537,1.29842443,111.28,111.19,63.02757309]
[1644517256837,1.27442443,111.28,111.19,70.60977877]
[1644517257239,1.27442443,111.28,111.22,13.4819]
[1644517257438,24.28862443,111.3,111.23,35.65282179]
[1644517257839,30.28862443,111.3,111.23,35.65282179]
[1644517258238,1.27442443,111.29,111.23,35.65282179]
[1644517258639,30.28862443,111.3,111.23,35.65282179]
[1644517259040,1.27442443,111.29,111.23,35.65282179]
[1644517259842,1.27442443,111.29,111.21,10.79]
[1644517260042,1.27442443,111.29,111.19,24.2777]
[1644517260043,14.76002443,111.29,111.19,24.2777]
[1644517260241,24.78612443,111.28,111.19,24.2777]
[1644517260841,24.78612443,111.28,111.2,39.23749517]
[1644517261243,30.78612443,111.28,111.21,13.4849]
[1644517262043,30.78612443,111.28,111.22,41.05146455]
[1644517262241,30.78612443,111.28,111.22,54.53596455]
[1644517263042,29.5117,111.28,111.22,54.53596455]
[1644517264445,30.78612443,111.28,111.22,54.53596455]
[1644517265347,30.78612443,111.28,111.22,41.05146455]
[1644517272355,30.78612443,111.28,111.22,54.53626455]
[1644517275358,44.27242443,111.28,111.21,13.486]
[1644517275559,5.76842443,111.27,111.17,107.3285]
[1644517275759,1.27442443,111.26,111.17,60.2414]
[1644517275959,1.29842443,111.27,111.17,60.2414]
[1644517276159,1.27442443,111.26,111.17,60.2414]
[1644517276360,1.27442443,111.26,111.18,41.96254955]
[1644517276759,13.4888,111.26,111.19,13.4887]
[1644517276962,14.76322443,111.26,111.2,39.4712405]
[1644517277261,13.4888,111.26,111.2,39.4712405]
[1644517277559,14.76322443,111.26,111.2,39.4712405]
[1644517278762,1.27442443,111.26,111.2,52.9587405]
[1644517279564,7.27442443,111.26,111.2,52.9587405]
[1644517280371,7.27442443,111.26,111.2,13.4875]
[1644517280567,20.76312443,111.26,111.16,4.495]
[1644517280767,1.27442443,111.24,111.16,4.495]
[1644517280972,5.77042443,111.23,111.16,4.495]
[1644517281166,1.27442443,111.22,111.12,4.496]
[1644517281365,1.27442443,111.22,111.13,43.01972363]
[1644517281566,25.85282443,111.23,111.13,43.01972363]
[1644517281766,23.8018,111.22,111.13,43.01972363]
[1644517282767,37.2964,111.22,111.13,56.51522363]
[1644517283170,41.7934,111.22,111.13,56.51522363]
[1644517283768,0.6869667,111.21,111.13,56.51522363]
[1644517283969,17.9933,111.2,111.1,10.79]
[1644517284170,22.7746,111.19,111.08,29.35853001]
[1644517284368,46.1955,111.19,111.08,29.35853001]
[1644517284568,47.46992443,111.19,111.08,28.08410558]
[1644517284767,47.46992443,111.19,111.08,13.4101]
[1644517285167,47.46992443,111.19,111.09,38.30567378]
[1644517285570,46.1955,111.19,111.09,38.30567378]
[1644517285767,13.4996,111.17,111.09,51.80547378]
[1644517288976,17.9977,111.18,111.09,51.80547378]
[1644517289173,13.4987,111.18,111.09,51.80547378]
[1644517290275,19.4987,111.18,111.09,51.80547378]
[1644517291684,23.9977,111.18,111.09,51.80547378]
[1644517295308,19.4987,111.18,111.09,51.80547378]
[1644517296811,19.4987,111.18,111.09,52.05547378]
[1644517297015,6.0,111.18,111.09,52.05547378]
[1644517297213,64.192,111.19,111.09,52.05547378]
[1644517297413,59.693,111.19,111.09,52.05547378]
[1644517297612,59.693,111.19,111.09,51.80547378]
[1644517297815,59.693,111.19,111.09,52.05547378]
[1644517298219,46.1955,111.19,111.1,100.68]
[1644517298414,0.024,111.23,111.1,100.68]
[1644517298415,0.024,111.23,111.13,13.4943]
[1644517298613,4.497,111.22,111.13,24.2843]
[1644517298815,118.8158,111.24,111.13,26.12768153]
[1644517298816,4.497,111.23,111.13,26.12768153]
[1644517299013,118.8158,111.24,111.13,26.12768153]
[1644517299213,146.67033675,111.24,111.14,38.78503489]
[1644517299415,20.54346902,111.22,111.14,38.78503489]
[1644517299614,4.497,111.21,111.14,38.78503489]
[1644517300413,46.26232443,111.23,111.14,38.78503489]
[1644517300414,29.4533,111.22,111.14,38.78503489]
[1644517300614,4.497,111.2,111.14,38.78503489]
[1644517300818,13.4968,111.2,111.14,38.78503489]
[1644517301717,42.96769637,111.2,111.1,34.9725]
[1644517302017,13.4984,111.18,111.11,13.4978]
[1644517302617,13.4984,111.18,111.12,36.61080796]
[1644517304615,19.4984,111.18,111.12,36.61080796]
[1644517306118,19.4984,111.18,111.1,13.4989]
[1644517306516,4.498,111.17,111.09,13.5004]
[1644517306716,36.3429,111.17,111.09,13.5004]
[1644517307420,36.3429,111.17,111.1,36.267245]
[1644517308219,42.3429,111.17,111.1,36.267245]
[1644517310024,28.8427,111.17,111.1,49.766245]
[1644517311629,6.0,111.17,111.1,51.35959082]
[1644517311824,14.77142443,111.19,111.1,51.35959082]
[1644517312326,1.27442443,111.19,111.1,51.35959082]
[1644517312723,1.27442443,111.19,111.1,152.03959082]
[1644517313324,1.27442443,111.19,111.1,152.28959082]
[1644517313524,1.27442443,111.2,111.1,152.28959082]
[1644517313728,1.27442443,111.21,111.1,167.76685482]
[1644517313927,1.27442443,111.22,111.12,43.16100166]
[1644517314130,1.27442443,111.22,111.15,47.12603564]
[1644517314326,1.27442443,111.23,111.15,47.12603564]
[1644517315529,7.27442443,111.23,111.15,47.12603564]
[1644517315730,1.27442443,111.23,111.17,13.4906]
[1644517315930,1.27442443,111.23,111.18,45.52464003]
[1644517316534,28.69082443,111.24,111.18,45.52464003]
[1644517316734,34.10378224,111.24,111.18,45.52464003]
[1644517316938,4.495,111.23,111.18,45.52464003]
[1644517317134,5.76942443,111.23,111.18,45.52464003]
[1644517318234,14.76692443,111.23,111.14,13.4937]
[1644517318436,30.61652443,111.22,111.14,13.4937]
[1644517318638,1.27442443,111.21,111.11,44.9799]
[1644517318836,4.498,111.2,111.11,44.9799]
[1644517319134,4.498,111.2,111.12,43.92805427]
[1644517319536,10.498,111.2,111.12,43.92805427]
[1644517320541,6.0,111.2,111.12,43.92805427]
[1644517320755,29.39312443,111.21,111.12,68.46475427]
[1644517320955,6.0,111.2,111.12,68.21475427]
[1644517321155,28.1187,111.21,111.12,68.46475427]
[1644517321354,34.1187,111.21,111.12,43.92805427]
[1644517321556,35.83498043,111.2,111.12,43.92805427]
[1644517321756,13.4999,111.17,111.12,43.92805427]
[1644517322458,4.498,111.19,111.12,43.92805427]
[1644517322657,1.27442443,111.2,111.12,43.92805427]
[1644517322956,1.27442443,111.2,111.12,59.01800009]
[1644517323158,24.89512443,111.21,111.12,65.26800009]
[1644517323359,1.29842443,111.23,111.15,48.57412412]
[1644517323557,23.9121,111.28,111.15,48.57412412]
[1644517323558,1.29842443,111.24,111.16,100.68]
[1644517323758,1.29842443,111.25,111.16,102.52334582]
[1644517323959,1.27442443,111.25,111.16,102.52334582]
[1644517324158,1.29842443,111.26,111.16,102.52334582]
[1644517324358,1.29842443,111.26,111.17,37.00844674]
[1644517324563,34.34008404,111.25,111.17,47.79844674]
[1644517324759,44.83508404,111.25,111.17,47.79844674]
[1644517325659,38.83508404,111.25,111.17,47.79844674]
[1644517325861,52.32538404,111.25,111.17,61.28874674]
[1644517326058,52.32538404,111.25,111.14,1.59334582]
[1644517326259,48.72222443,111.24,111.11,13.8256]
[1644517326461,1.27442443,111.22,111.09,37.34907025]
[1644517326661,1.27442443,111.22,111.09,36.07464582]
[1644517326861,1.27442443,111.21,111.09,36.07464582]
[1644517327066,1.27442443,111.21,111.1,45.94417171]
[1644517327262,31.96177059,111.22,111.1,46.19417171]
[1644517327464,5.77242443,111.21,111.1,46.19417171]
[1644517327663,5.77242443,111.21,111.1,47.78751753]
[1644517327864,19.26812443,111.21,111.12,37.236803]
[1644517328765,30.2697788,111.2,111.12,37.236803]
[1644517329166,19.26812443,111.21,111.12,37.236803]
[1644517330368,9.33171161,111.2,111.1,25.88144582]
[1644517330568,13.4999,111.17,111.09,23.6913]
[1644517330766,13.4999,111.17,111.09,23.6673]
[1644517330968,13.4999,111.17,111.08,12.40734582]
[1644517331168,13.4999,111.17,111.08,1.61734582]
[1644517331370,23.8842,111.16,111.09,47.09904935]
[1644517331769,29.8842,111.16,111.09,47.09904935]
[1644517332173,9.33171161,111.15,111.08,15.11864582]
[1644517332371,22.83401161,111.15,111.08,1.61734582]
[1644517332570,4.499,111.14,111.06,1.61734582]
[1644517332774,4.499,111.14,111.05,0.024]
[1644517332971,36.61542154,111.16,111.05,0.024]
[1644517333573,34.3842,111.16,111.05,13.5285]
[1644517333773,34.3842,111.16,111.06,46.14539815]
[1644517333972,6.0,111.16,111.07,89.89]
[1644517334172,22.8303,111.18,111.07,100.704]
[1644517334373,1.27442443,111.21,111.08,14.69800558]
[1644517334675,1.27442443,111.21,111.09,100.704]
[1644517334972,26.81983344,111.21,111.11,13.4955]
[1644517335172,26.81983344,111.21,111.12,54.94367016]
[1644517335374,32.81983344,111.21,111.12,54.94367016]
[1644517335672,6.0,111.21,111.12,54.94367016]
[1644517335874,23.3452,111.22,111.12,56.78701598]
[1644517336073,23.3452,111.22,111.12,76.28251598]
[1644517336273,23.3452,111.22,111.13,89.89]
[1644517336274,29.3452,111.22,111.13,89.89]
[1644517336474,23.3452,111.22,111.14,10.79]
[1644517336779,23.3452,111.22,111.15,42.99537195]
[1644517337575,29.3452,111.22,111.15,42.99537195]
[1644517337773,6.0,111.22,111.15,147.97041777]
[1644517338173,23.7403,111.24,111.15,158.76041777]
[1644517338375,23.7403,111.24,111.15,169.50641777]
[1644517338573,29.7403,111.24,111.15,169.50641777]
[1644517340676,0.024,111.24,111.15,178.28445234]
[1644517340875,0.024,111.26,111.15,178.28445234]
[1644517341078,0.024,111.24,111.19,13.4831]
[1644517341275,0.024,111.26,111.2,10.79]
[1644517341477,1.29842443,111.29,111.21,48.02129482]
[1644517341675,1.29842443,111.29,111.21,58.81129482]
[1644517341676,0.024,111.28,111.21,58.81129482]
[1644517341877,1.27442443,111.29,111.21,58.81129482]
[1644517342075,1.27442443,111.29,111.18,1.59334582]
[1644517342275,5.79242443,111.28,111.18,12.38334582]
[1644517342478,1.27442443,111.28,111.18,10.79]
[1644517342678,4.495,111.27,111.18,10.79]
[1644517342876,5.76942443,111.27,111.18,10.79]
[1644517343074,0.99059667,111.26,111.19,36.87313929]
[1644517343274,19.25872443,111.27,111.19,36.87313929]
[1644517343474,13.4893,111.27,111.19,36.87313929]
[1644517343675,14.76372443,111.27,111.19,36.87313929]
[1644517344276,28.50873346,111.26,111.19,36.87313929]
[1644517344476,46.49383346,111.26,111.17,24.2794]
[1644517344676,46.49383346,111.26,111.17,24.25556057]
[1644517345478,46.49383346,111.26,111.17,54.5272156]
[1644517345880,47.76825789,111.26,111.17,54.5272156]
[1644517346780,43.27325789,111.26,111.17,54.5272156]
[1644517346987,41.99883346,111.26,111.17,54.5272156]
[1644517347386,43.27325789,111.26,111.17,54.5272156]
[1644517347588,90.27533346,111.26,111.17,54.5272156]
[1644517347789,91.54975789,111.26,111.17,54.5272156]
[1644517348388,90.27533346,111.26,111.17,54.5272156]
[1644517348685,61.7666,111.26,111.17,56.12056142]
[1644517348986,61.7666,111.26,111.17,54.5272156]
[1644517349888,66.2616,111.26,111.17,54.5272156]
[1644517351288,72.2616,111.26,111.17,69.61006142]
[1644517351688,67.7666,111.26,111.17,69.61006142]
[1644517352188,54.2765,111.26,111.17,69.61006142]
[1644517352588,55.55092443,111.26,111.17,69.61006142]
[1644517353288,54.2765,111.26,111.17,75.86006142]
[1644517353490,48.2765,111.26,111.17,75.86006142]
[1644517355716,54.2765,111.26,111.17,89.68446142]
[1644517355913,54.2765,111.26,111.18,4.495]
[1644517356213,48.2765,111.26,111.19,1.59334582]
[1644517357713,54.2765,111.26,111.18,28.7722]
[1644517357917,58.7715,111.26,111.18,28.7722]
[1644517358814,58.7715,111.26,111.19,1.59334582]
[1644517359016,48.2765,111.26,111.19,1.59334582]
[1644517359314,0.024,111.28,111.19,15.33014582]
[1644517359518,0.024,111.29,111.22,0.30541601]
[1644517359716,1.29842443,111.31,111.23,10.79]
[1644517359915,0.024,111.32,111.24,4.493]
[1644517360114,4.517,111.33,111.25,10.79]
[1644517360319,38.75740025,111.33,111.26,41.76596585]
[1644517360514,34.26440025,111.33,111.26,41.76596585]
[1644517361015,4.492,111.32,111.26,41.76596585]
[1644517362216,32.14116977,111.32,111.26,41.76596585]
[1644517362415,27.64916977,111.32,111.26,41.76596585]
[1644517362617,27.64916977,111.32,111.24,10.79]
[1644517362818,45.62476977,111.32,111.23,10.79]
[1644517363017,0.024,111.31,111.22,24.2735]
[1644517363219,34.39739131,111.32,111.22,24.2735]
[1644517363419,6.74822154,111.32,111.22,24.2735]
[1644517363819,8.02264597,111.32,111.22,24.2735]
[1644517364019,3.52964597,111.32,111.22,24.2735]
[1644517364323,1.29842443,111.32,111.23,43.20805083]
[1644517364517,13.4846,111.31,111.23,56.69135083]
[1644517364721,13.4846,111.31,111.23,43.20805083]
[1644517364918,19.4846,111.31,111.23,43.20805083]
[1644517365119,4.493,111.3,111.17,101.17217038]
[1644517365320,0.024,111.29,111.18,39.9485]
[1644517365519,0.024,111.29,111.18,33.9485]
[1644517365722,0.024,111.29,111.18,39.9485]
[1644517365920,0.024,111.29,111.2,13.4869]
[1644517366321,0.024,111.29,111.2,13.7369]
[1644517367622,0.024,111.29,111.2,18.2309]
[1644517368322,0.024,111.29,111.23,13.4834]
[1644517368522,23.9532,111.3,111.24,37.9190515]
[1644517368727,5.79242443,111.32,111.24,37.9190515]
[1644517368924,1.27442443,111.32,111.24,37.9190515]
[1644517369124,29.94612443,111.33,111.24,38.1690515]
[1644517369326,29.92212443,111.33,111.24,38.1690515]
[1644517369528,29.92212443,111.33,111.24,51.6512515]
[1644517370326,25.42912443,111.33,111.24,51.6512515]
[1644517370524,41.14124597,111.33,111.24,51.4012515]
[1644517370724,1.27442443,111.32,111.24,37.9190515]
[1644517370927,5.76742443,111.32,111.24,37.9190515]
[1644517371125,3.50564597,111.32,111.24,37.9190515]
[1644517371430,1.27442443,111.32,111.24,37.9190515]
[1644517371626,6.0,111.32,111.24,37.9190515]
[1644517372028,25.45312443,111.33,111.24,37.9190515]
[1644517372224,24.1547,111.33,111.24,38.1690515]
[1644517372928,13.482,111.32,111.24,51.6514515]
[1644517373926,13.482,111.32,111.24,13.4824]
[1644517374126,13.482,111.32,111.24,13.7324]
[1644517374928,13.482,111.32,111.24,0.25]
[1644517375130,17.9766,111.31,111.24,0.25]
[1644517375330,6.99753373,111.3,111.23,49.34240463]
[1644517375728,12.99753373,111.3,111.23,49.34240463]
[1644517376129,12.99753373,111.3,111.23,13.4836]
[1644517376329,12.99753373,111.3,110.85,38.35916341]
[1644517376330,2.23122154,111.29,111.19,4.493]
[1644517376529,2.23122154,111.29,111.14,2.58127756]
[1644517376530,31.34802154,111.29,111.15,15.284]
[1644517376729,23.6033,111.28,111.16,22.9081]
[1644517376928,4.519,111.27,111.16,22.9081]
[1644517377132,51.47897204,111.26,111.17,45.41481149]
[1644517377631,23.5725,111.26,111.17,45.41481149]
[1644517377829,37.0617,111.26,111.17,59.15541149]
[1644517378630,63.82365079,111.26,111.17,58.90541149]
[1644517379229,63.82365079,111.26,111.16,22.9081]
[1644517379230,63.82365079,111.26,111.15,13.4921]
[1644517379431,13.4928,111.23,111.16,0.25]
[1644517380130,13.4928,111.23,111.16,38.18818743]
[1644517380332,8.14205498,111.22,111.15,13.4921]
[1644517380531,8.14205498,111.22,111.14,10.814]
[1644517380532,13.4961,111.21,111.14,0.024]
[1644517380729,13.4961,111.21,111.09,16.13837756]
[1644517380730,63.9164,111.21,111.13,0.024]
[1644517380935,63.9164,111.21,111.11,0.024]
[1644517381331,63.9164,111.21,111.11,43.88918278]
[1644517381734,63.9164,111.21,111.11,57.38638278]
[1644517382534,63.9164,111.21,111.11,13.5212]
[1644517382734,66.14762154,111.21,111.11,0.024]
[1644517383235,76.93762154,111.21,111.11,0.024]
[1644517383434,76.93762154,111.21,111.08,0.024]
[1644517383634,76.93762154,111.21,111.08,46.06483339]
[1644517383835,76.93762154,111.21,111.09,0.024]
[1644517386735,82.93762154,111.21,111.09,0.024]
[1644517387737,84.21204597,111.21,111.09,0.024]
[1644517388637,82.93762154,111.21,111.09,0.024]
[1644517389744,63.9164,111.21,111.09,0.024]
[1644517389945,63.9164,111.21,111.1,1.59334582]
[1644517390142,59.4194,111.21,111.11,0.024]
[1644517390343,59.4194,111.21,111.11,10.814]
[1644517390544,45.9233,111.21,111.11,12.40734582]
[1644517390743,45.9233,111.21,111.12,40.56582812]
[1644517390942,51.9233,111.21,111.12,54.06162812]
[1644517391742,65.42,111.21,111.12,54.06162812]
[1644517392145,4.497,111.2,111.12,54.06162812]
[1644517392549,65.42,111.21,111.12,54.06162812]
[1644517393444,51.9233,111.21,111.12,54.06162812]
[1644517393846,6.0,111.21,111.13,10.79]
[1644517394048,27.5857,111.24,111.14,13.4936]
[1644517394246,27.5857,111.24,111.15,10.79]
[1644517394247,23.0877,111.24,111.15,10.79]
[1644517394447,0.024,111.25,111.16,37.52704889]
[1644517394650,71.88916762,111.26,111.16,37.52704889]
[1644517394651,85.40346762,111.26,111.16,37.52704889]
[1644517394848,4.495,111.25,111.16,37.52704889]
[1644517395248,4.495,111.25,111.17,13.49]
[1644517395456,4.495,111.25,111.16,37.52704889]
[1644517395676,10.495,111.25,111.16,37.52704889]
[1644517396776,23.9867,111.25,111.16,37.52704889]
[1644517397476,46.9925,111.26,111.16,37.52704889]
[1644517397477,0.024,111.26,111.17,10.79]
[1644517397682,0.024,111.28,111.18,89.89]
[1644517397876,29.0734,111.29,111.19,10.79]
[1644517398080,0.024,111.28,111.19,10.79]
[1644517398378,23.0734,111.29,111.22,13.4843]
[1644517398583,47.6441,111.3,111.22,13.4843]
[1644517398777,53.6441,111.3,111.22,19.4843]
[1644517399779,6.0,111.3,111.22,109.6243]
[1644517399984,0.024,111.32,111.22,120.4143]
[1644517400282,47.1539,111.33,111.22,120.4143]
[1644517401580,47.1539,111.33,111.22,114.4143]
[1644517401782,47.1539,111.33,111.22,120.4143]
[1644517401983,10.1401002,111.32,111.22,30.2743]
[1644517402183,14.6331002,111.32,111.22,24.2743]
[1644517402383,16.86432174,111.32,111.22,13.4843]
[1644517402786,6.72422154,111.32,111.22,13.4843]
[1644517403185,17.9758,111.32,111.22,13.4843]
[1644517403583,23.9758,111.32,111.22,13.4843]
[1644517403789,23.9758,111.32,111.22,13.7343]
[1644517404184,10.493,111.32,111.22,13.7343]
[1644517404584,5.83264766,111.31,111.22,13.4843]
[1644517404784,6.72422154,111.32,111.22,13.4843]
[1644517404984,2.23122154,111.32,111.22,13.4843]
[1644517405287,13.484,111.31,111.22,13.4843]
[1644517405484,17.977,111.31,111.22,13.4843]
[1644517406088,4.493,111.31,111.22,13.4843]
[1644517406285,51.6469,111.33,111.22,13.4843]
[1644517406485,66.40402443,111.33,111.22,13.4843]
[1644517406684,68.63524597,111.33,111.22,13.4843]
[1644517406985,26.50427279,111.32,111.22,13.4843]
[1644517407185,4.493,111.31,111.22,13.4843]
[1644517408386,26.50427279,111.32,111.22,13.4843]
[1644517408387,13.4836,111.32,111.22,13.4843]
[1644517409285,45.72084403,111.32,111.22,13.4843]
[1644517409688,4.493,111.31,111.22,13.4843]
[1644517411388,17.9771,111.31,111.22,13.4843]
[1644517411593,17.9771,111.31,111.2,50.08126771]
[1644517411594,2.23122154,111.3,111.2,50.08126771]
[1644517411789,2.66676174,111.28,111.2,36.59506771]
[1644517411990,2.66676174,111.28,111.15,13.6988]
[1644517411991,4.494,111.27,111.15,13.6988]
[1644517412190,6.74922154,111.27,111.14,0.024]
[1644517412389,13.4938,111.23,111.13,10.814]
[1644517412590,13.4938,111.23,111.14,0.024]
[1644517412791,13.4938,111.23,111.13,0.274]
[1644517412992,13.4938,111.23,111.14,35.47317237]
[1644517413189,36.8622,111.23,111.14,35.49717237]
[1644517413589,4.497,111.22,111.14,35.49717237]
[1644517413789,13.4966,111.21,111.14,35.47317237]
[1644517413989,13.4966,111.21,111.14,35.49717237]
[1644517414190,13.4966,111.21,111.14,35.47317237]
[1644517414792,23.3684,111.23,111.14,35.47317237]
[1644517414990,4.497,111.22,111.14,35.49717237]
[1644517415190,4.497,111.22,111.14,35.47317237]
[1644517415790,17.9918,111.22,111.14,48.96777237]
[1644517416590,17.9918,111.22,111.14,35.47317237]
[1644517416992,36.8618,111.23,111.14,35.47317237]
[1644517417192,36.8618,111.23,111.14,35.49717237]
[1644517418295,4.497,111.22,111.14,35.49717237]
[1644517418493,4.497,111.22,111.14,35.47317237]
[1644517418694,42.8618,111.23,111.14,48.96717237]
[1644517418896,13.4922,111.24,111.14,55.24117237]
[1644517419096,29.1746,111.26,111.15,10.79]
[1644517419295,35.1746,111.26,111.15,11.064]
[1644517419494,35.1746,111.26,111.15,12.65734582]
[1644517419694,35.1746,111.26,111.15,102.54734582]
[1644517419895,35.1746,111.26,111.15,18.65734582]
[1644517420094,48.6649,111.26,111.18,13.4896]
[1644517420296,44.1689,111.26,111.15,55.7792]
[1644517420496,4.63853442,111.24,111.15,55.7792]
[1644517420706,4.496,111.23,111.15,55.7552]
[1644517421099,4.496,111.23,111.16,13.4914]
[1644517421494,4.496,111.23,111.14,35.49717237]
[1644517421895,10.496,111.23,111.14,35.49717237]
[1644517422094,4.496,111.23,111.14,35.49717237]
[1644517422298,17.9894,111.23,111.14,35.49717237]
[1644517422495,26.22062154,111.23,111.14,35.49717237]
[1644517426896,26.22062154,111.23,111.14,0.024]
[1644517427197,13.498,111.19,111.11,0.024]
[1644517427397,13.498,111.19,111.11,13.5226]
[1644517427599,4.498,111.18,111.11,13.5226]
[1644517427897,4.498,111.18,111.12,45.92702154]
[1644517428098,34.57119474,111.19,111.12,45.92702154]
[1644517428296,6.0,111.19,111.12,45.92702154]
[1644517428699,13.4994,111.18,111.12,45.92702154]
[1644517429105,19.4994,111.18,111.12,45.92702154]
[1644517430901,19.4994,111.18,111.11,13.5226]
[1644517431102,19.4994,111.18,111.11,0.024]
[1644517431306,19.4994,111.18,111.09,0.024]
[1644517431507,4.499,111.17,111.08,0.024]
[1644517431703,13.5049,111.15,111.06,0.024]
[1644517432002,12.69872058,111.14,111.04,37.45283302]
[1644517432203,8.19872058,111.14,111.05,13.5049]
[1644517432603,132.0,111.13,111.02,1.27442443]
[1644517432804,4.501,111.12,110.99,1.27442443]
[1644517433004,66.49762154,111.12,110.97,108.25992443]
[1644517433205,66.49762154,111.12,110.97,14.78782443]
[1644517433206,45.0446,111.1,110.97,14.78782443]
[1644517433403,4.503,111.09,110.96,15.03092443]
[1644517433603,75.68068519,111.08,110.98,46.93537789]
[1644517433808,89.19378519,111.08,110.98,46.93537789]
[1644517434003,62.4885,111.08,110.98,46.93537789]
[1644517434406,62.4885,111.08,110.98,60.44757789]
[1644517434807,34.5203,111.11,110.98,77.48757789]
[1644517434808,13.5102,111.1,110.98,77.48757789]
[1644517435004,33.26578715,111.13,110.98,90.85400732]
[1644517435303,33.26578715,111.13,110.98,103.68918755]
[1644517435506,4.502,111.12,110.98,105.28253337]
[1644517435704,6.0,111.13,110.99,1.72442443]
[1644517435904,6.0,111.13,111.03,13.5032]
[1644517436104,57.7893,111.18,111.04,10.79]
[1644517436307,4.5,111.17,111.03,13.5032]
[1644517436509,49.37454927,111.16,111.05,43.17525669]
[1644517436714,94.39544927,111.16,111.05,43.17525669]
[1644517436924,10.79,111.15,111.05,43.17525669]
[1644517437125,4.5,111.14,111.05,43.17525669]
[1644517437728,40.5336,111.14,111.05,43.17525669]
[1644517438527,36.0336,111.14,111.05,43.17525669]
[1644517439127,42.0336,111.14,111.05,43.17525669]
[1644517439530,42.0336,111.14,111.05,56.67925669]
[1644517439730,28.5288,111.14,111.05,56.92925669]
[1644517439928,22.5288,111.14,111.05,56.92925669]
[1644517440132,22.5288,111.14,111.05,56.67925669]
[1644517440530,55.77634065,111.14,111.05,43.17525669]
[1644517440729,4.5,111.13,111.05,43.17525669]
[1644517440933,55.77634065,111.14,111.05,43.17525669]
[1644517441130,22.5288,111.14,111.05,43.17525669]
[1644517441332,28.5288,111.14,111.05,43.17525669]
[1644517441536,28.5288,111.14,111.05,56.67935669]
[1644517441732,42.0335,111.14,111.05,56.67935669]
[1644517443135,42.0335,111.14,111.05,56.92935669]
[1644517443735,28.5288,111.14,111.05,56.92935669]
[1644517444437,6.0,111.14,111.05,67.89967019]
[1644517444638,6.0,111.14,111.06,10.79]
[1644517444839,37.246,111.18,111.08,13.4987]
[1644517445040,37.246,111.18,111.08,24.2887]
[1644517445239,23.7454,111.18,111.08,30.5387]
[1644517445440,23.7454,111.18,111.09,38.09760076]
[1644517445742,0.87607753,111.17,111.09,48.88760076]
[1644517446647,0.87607753,111.17,111.09,38.09760076]
[1644517446846,25.97662154,111.18,111.09,38.09760076]
[1644517447046,4.499,111.17,111.09,38.09760076]
[1644517447246,13.5027,111.16,111.09,38.09760076]
[1644517447450,46.9768,111.18,111.09,38.09760076]
[1644517447646,46.9768,111.18,111.09,38.34760076]
[1644517448346,52.9768,111.18,111.09,44.37160076]
[1644517448647,52.9768,111.18,111.09,38.37160076]
[1644517448851,52.9768,111.18,111.09,51.87130076]
[1644517449650,4.499,111.21,111.1,10.79]
[1644517449848,47.5295,111.24,111.12,103.385]